bitfinex-derivatives/quotes_BTCF0:USTF0_20241208
["timestamp","ask_amount","ask_price","bid_price","bid_amount"]
[1733616244668,9.842e-05,99950.0,99949.0,0.43568961]
[1733616245973,9.842e-05,99950.0,99949.0,0.40070561]
[1733616245974,0.03508242,99950.0,99949.0,0.40070561]
[1733616246376,9.842e-05,99950.0,99949.0,0.43568961]
[1733616246972,9.842e-05,99950.0,99949.0,0.40070561]
[1733616247781,9.842e-05,99950.0,99949.0,0.00420561]
[1733616248584,9.842e-05,99950.0,99949.0,0.00108]
[1733616248785,9.842e-05,99950.0,99949.0,0.00420574]
[1733616249686,9.842e-05,99950.0,99949.0,0.03918974]
[1733616251787,9.842e-05,99950.0,99949.0,0.03918952]
[1733616253779,9.842e-05,99950.0,99949.0,0.61512805]
[1733616253969,9.842e-05,99950.0,99949.0,0.43568952]
[1733616254678,9.842e-05,99950.0,99949.0,0.61512384]
[1733616254884,9.842e-05,99950.0,99949.0,0.43568952]
[1733616257981,0.03508242,99950.0,99949.0,0.40070552]
[1733616258185,0.03508242,99950.0,99949.0,0.39758]
[1733616258380,0.03508242,99950.0,99949.0,0.40070579]
[1733616258780,0.03508242,99950.0,99949.0,0.40070581]
[1733616258987,0.03508242,99950.0,99949.0,0.40383162]
[1733616259184,0.034985,99947.0,99941.0,0.02977607]
[1733616259374,0.3608,99942.0,99931.0,0.00500345]
[1733616259579,0.03499,99932.0,99931.0,0.00500345]
[1733616262792,0.03499,99932.0,99924.0,0.00150106]
[1733616262793,0.034992,99925.0,99924.0,0.00150106]
[1733616262982,0.395792,99925.0,99924.0,0.00150106]
[1733616263178,0.395872,99925.0,99924.0,0.00150106]
[1733616264187,0.48569296,99925.0,99924.0,0.00150106]
[1733616264690,0.395872,99925.0,99924.0,0.00150106]
[1733616265186,0.395872,99925.0,99924.0,0.03649406]
[1733616265392,0.395872,99925.0,99924.0,0.034993]
[1733616265393,0.36088,99925.0,99924.0,0.034993]
[1733616265595,0.36088,99925.0,99924.0,0.03999588]
[1733616266682,0.36488,99925.0,99924.0,0.03999588]
[1733616266887,0.45467923,99925.0,99924.0,0.03999588]
[1733616267088,0.36488,99925.0,99924.0,0.03999588]
[1733616267298,0.45466923,99925.0,99924.0,0.03999588]
[1733616267886,0.36488,99925.0,99924.0,0.03999588]
[1733616268087,0.45466923,99925.0,99924.0,0.03999588]
[1733616268487,0.36488,99925.0,99924.0,0.03999588]
[1733616268692,0.36488,99925.0,99924.0,0.0399956]
[1733616269288,0.00408,99925.0,99924.0,0.0399956]
[1733616269492,0.00408,99925.0,99924.0,0.034993]
[1733616269687,0.45058923,99934.0,99933.0,0.03499]
[1733616269996,0.3608,99934.0,99933.0,0.03507]
[1733616270592,0.11984591,99942.0,99933.0,0.03507]
[1733616270593,0.08978923,99936.0,99935.0,0.034989]
[1733616270798,0.08978923,99938.0,99937.0,0.034988]
[1733616271091,0.08978923,99939.0,99938.0,0.034988]
[1733616271285,0.08978923,99939.0,99938.0,0.03811404]
[1733616271486,0.08978923,99941.0,99940.0,0.034987]
[1733616271689,0.08978923,99941.0,99940.0,0.03811304]
[1733616271894,8e-05,99942.0,99940.0,0.03819304]
[1733616272088,8e-05,99942.0,99941.0,0.03811304]
[1733616272394,0.08984172,99942.0,99941.0,0.03819304]
[1733616272788,8e-05,99942.0,99941.0,0.03819304]
[1733616273493,8e-05,99942.0,99941.0,0.04319464]
[1733616273885,8e-05,99942.0,99941.0,0.04419464]
[1733616274892,8e-05,99942.0,99941.0,0.00920764]
[1733616276097,0.08985047,99942.0,99941.0,0.00920764]
[1733616276287,8e-05,99942.0,99941.0,0.00920764]
[1733616277297,0.035067,99942.0,99941.0,0.00920764]
[1733616278191,0.18484755,99942.0,99941.0,0.00920807]
[1733616278395,0.18484755,99942.0,99941.0,0.04419507]
[1733616278396,0.035067,99942.0,99941.0,0.04419507]
[1733616278590,0.08369288,99942.0,99941.0,0.04419507]
[1733616279189,0.21427599,99942.0,99941.0,0.04419507]
[1733616279398,0.08369288,99942.0,99941.0,0.04419507]
[1733616279701,0.08369373,99942.0,99941.0,0.04419507]
[1733616280292,0.04870673,99942.0,99941.0,0.04419507]
[1733616280688,8e-05,99942.0,99941.0,0.04419507]
[1733616280890,0.14972203,99942.0,99941.0,0.04419507]
[1733616281495,0.14973332,99942.0,99941.0,0.04419504]
[1733616282389,0.04870659,99942.0,99941.0,0.04419504]
[1733616282592,8e-05,99942.0,99941.0,0.04419504]
[1733616285002,0.11981777,99942.0,99941.0,0.04419504]
[1733616285203,8e-05,99942.0,99941.0,0.04419504]
[1733616286002,0.11981777,99942.0,99941.0,0.04419504]
[1733616286302,8e-05,99942.0,99941.0,0.04419504]
[1733616286693,0.11983868,99942.0,99941.0,0.04419504]
[1733616287100,0.11983993,99942.0,99941.0,0.04419504]
[1733616288507,0.11983993,99942.0,99941.0,0.04419413]
[1733616288892,8e-05,99942.0,99941.0,0.04419413]
[1733616291102,0.11987875,99942.0,99941.0,0.04419413]
[1733616291304,8e-05,99942.0,99941.0,0.04419413]
[1733616291704,0.14976277,99950.0,99941.0,0.54075266]
[1733616292005,0.01,99963.0,99962.0,0.03498]
[1733616292205,0.17920899,99974.0,99962.0,0.76542713]
[1733616292400,0.17920899,99974.0,99973.0,0.034976]
[1733616292705,0.17920899,99974.0,99973.0,0.04318313]
[1733616292706,0.04861209,99974.0,99973.0,0.04318313]
[1733616292899,0.04861209,99974.0,99973.0,0.00820713]
[1733616293204,0.54000899,99977.0,99973.0,0.00820713]
[1733616293205,0.37408722,99977.0,99973.0,0.00820713]
[1733616293403,0.0486121,99976.0,99975.0,0.034975]
[1733616293598,0.37408722,99977.0,99975.0,0.04310213]
[1733616293799,0.3608,99977.0,99976.0,0.04310213]
[1733616294608,0.3608,99977.0,99976.0,0.00812713]
[1733616294806,0.395774,99977.0,99976.0,0.00812534]
[1733616295107,0.395774,99977.0,99976.0,0.00912534]
[1733616296107,0.395774,99977.0,99976.0,0.04410034]
[1733616297317,0.395774,99977.0,99976.0,0.04510034]
[1733616298515,0.395774,99977.0,99976.0,0.04510049]
[1733616302114,0.395774,99977.0,99976.0,0.01012549]
[1733616302417,0.395774,99977.0,99976.0,0.00512519]
[1733616302808,0.03498,99962.0,99961.0,0.3965]
[1733616303014,0.39578,99962.0,99961.0,0.40150094]
[1733616303210,0.450599,99962.0,99951.0,0.00150066]
[1733616303506,0.395943,99952.0,99951.0,0.00150066]
[1733616303711,0.395943,99952.0,99951.0,0.0065018]
[1733616304214,0.395943,99952.0,99951.0,0.0414848]
[1733616304912,0.36096,99952.0,99951.0,0.0414848]
[1733616305217,0.00016,99952.0,99951.0,0.0414848]
[1733616306711,0.00016,99952.0,99951.0,0.03648366]
[1733616306914,0.00016,99952.0,99951.0,0.04148487]
[1733616307517,0.035143,99952.0,99951.0,0.04148487]
[1733616308013,0.035143,99952.0,99951.0,0.03648366]
[1733616308313,0.035143,99952.0,99951.0,0.04148486]
[1733616309417,0.035143,99952.0,99951.0,0.0399842]
[1733616309919,0.035143,99952.0,99951.0,0.034983]
[1733616311213,0.00016,99952.0,99951.0,0.034983]
[1733616314815,0.00016,99952.0,99951.0,0.03810859]
[1733616317114,0.00016,99952.0,99951.0,0.04311104]
[1733616318121,0.089639,99960.0,99959.0,0.034981]
[1733616318323,0.089639,99961.0,99960.0,0.03498]
[1733616318512,0.17920899,99975.0,99960.0,0.03810559]
[1733616318718,0.04861484,99970.0,99961.0,0.03642559]
[1733616319015,0.36090487,99980.0,99970.0,0.034977]
[1733616319016,0.17920899,99977.0,99970.0,0.034977]
[1733616319320,0.36090487,99980.0,99979.0,0.034974]
[1733616319321,0.17931386,99980.0,99979.0,0.034974]
[1733616319518,0.00010487,99980.0,99979.0,0.03809959]
[1733616319716,0.00010487,99980.0,99979.0,0.03817959]
[1733616320830,0.17920899,99994.0,99979.0,0.43467959]
[1733616321023,0.68300832,100010.0,99986.0,0.3965]
[1733616321024,0.17920899,99995.0,99986.0,0.3965]
[1733616321327,0.17920899,99995.0,99985.0,0.3608]
[1733616321328,0.27920899,100000.0,99994.0,0.36088]
[1733616321525,0.04860454,99999.0,99995.0,0.03442559]
[1733616321726,0.04860454,99999.0,99998.0,0.034967]
[1733616322025,0.04860454,99999.0,99998.0,0.03809259]
[1733616322326,0.1,100000.0,99999.0,0.3965]
[1733616322327,0.42931171,100000.0,99999.0,0.3965]
[1733616322523,0.42931171,100000.0,99999.0,0.39962559]
[1733616322728,0.46427771,100000.0,99999.0,0.00312559]
[1733616322921,0.36319373,100000.0,99999.0,0.00312559]
[1733616323118,0.39264631,100000.0,99999.0,0.00312559]
[1733616323319,0.39264631,100000.0,99998.0,0.001]
[1733616323320,1.16631156,100000.0,99967.0,0.3608]
[1733616323624,0.034976,99972.0,99966.0,0.01]
[1733616323820,0.034976,99972.0,99970.0,0.00016649]
[1733616328822,0.04861385,99971.0,99970.0,0.00016649]
[1733616331821,0.04861385,99971.0,99970.0,0.00116649]
[1733616332025,0.14960851,99971.0,99970.0,0.00116649]
[1733616332229,0.04861348,99971.0,99970.0,0.00116649]
[1733616332533,0.034976,99972.0,99970.0,0.00116649]
[1733616332929,0.034976,99972.0,99971.0,8e-05]
[1733616334032,0.18458133,99972.0,99971.0,8e-05]
[1733616334529,0.08358859,99972.0,99971.0,8e-05]
[1733616334719,0.034976,99972.0,99971.0,8e-05]
[1733616334923,0.034976,99972.0,99971.0,0.00108]
[1733616334924,0.18458568,99972.0,99971.0,0.00108]
[1733616335120,0.034976,99972.0,99971.0,0.00108]
[1733616335424,0.08181282,99973.0,99959.0,0.0015805]
[1733616335632,0.39578,99960.0,99959.0,0.0015805]
[1733616335833,0.39594,99960.0,99959.0,0.0047063]
[1733616336128,0.39594,99960.0,99959.0,0.0046263]
[1733616336331,0.39594,99960.0,99941.0,0.23891199]
[1733616336332,0.034983,99953.0,99941.0,0.23891199]
[1733616336535,0.394,99952.0,99950.0,8.558e-05]
[1733616336719,0.39408,99952.0,99950.0,8.558e-05]
[1733616337628,0.034983,99951.0,99950.0,8.558e-05]
[1733616338128,0.035063,99951.0,99950.0,8.558e-05]
[1733616339334,0.066063,99951.0,99950.0,8.558e-05]
[1733616341646,0.15575274,99951.0,99950.0,8.558e-05]
[1733616341832,0.066063,99951.0,99950.0,8.558e-05]
[1733616345436,0.035063,99951.0,99950.0,8.558e-05]
[1733616346951,0.035063,99951.0,99950.0,0.23865899]
[1733616347241,0.035063,99951.0,99950.0,8.558e-05]
[1733616347644,0.1247247,99951.0,99950.0,8.558e-05]
[1733616348140,0.035063,99951.0,99950.0,8.558e-05]
[1733616349639,0.035063,99951.0,99950.0,0.03819563]
[1733616349861,0.035063,99951.0,99950.0,0.03819553]
[1733616349862,8e-05,99951.0,99950.0,0.03819553]
[1733616352345,8e-05,99951.0,99950.0,0.04119553]
[1733616352848,8e-05,99951.0,99950.0,0.43769553]
[1733616353145,8e-05,99951.0,99950.0,0.67636435]
[1733616353553,8e-05,99951.0,99950.0,0.43969553]
[1733616355346,8e-05,99951.0,99950.0,0.43669553]
[1733616355547,8e-05,99951.0,99950.0,0.43969553]
[1733616356143,8e-05,99951.0,99950.0,0.43969493]
[1733616357156,8e-05,99951.0,99950.0,0.6786944]
[1733616357450,8e-05,99951.0,99950.0,0.43969493]
[1733616358452,8e-05,99951.0,99950.0,0.6786944]
[1733616359051,8e-05,99951.0,99950.0,0.67869434]
[1733616360560,8e-05,99951.0,99950.0,0.43969487]
[1733616361346,8e-05,99951.0,99950.0,0.43969489]
[1733616366460,8e-05,99951.0,99950.0,0.00821089]
[1733616366649,0.035063,99951.0,99950.0,0.00821089]
[1733616366961,0.395863,99951.0,99950.0,0.24718848]
[1733616367152,0.395863,99951.0,99950.0,0.24406317]
[1733616367462,0.395863,99951.0,99950.0,0.0082112]
[1733616367666,0.40845365,99951.0,99950.0,0.0082112]
[1733616367956,0.40845365,99951.0,99950.0,0.0052112]
[1733616368153,0.40845365,99951.0,99950.0,0.00208558]
[1733616368357,0.40845365,99951.0,99950.0,0.0052117]
[1733616368662,0.034984,99948.0,99947.0,0.3965]
[1733616369065,0.035064,99948.0,99947.0,0.3965]
[1733616369359,0.035064,99948.0,99939.0,0.23898389]
[1733616369360,0.12488399,99948.0,99939.0,0.23898389]
[1733616369659,0.12488399,99948.0,99934.0,0.3333841]
[1733616369660,0.034988,99938.0,99937.0,0.2983951]
[1733616369961,0.034988,99938.0,99934.0,0.034989]
[1733616369962,0.034989,99935.0,99934.0,0.3333841]
[1733616370162,0.034989,99935.0,99934.0,0.62837716]
[1733616370357,0.035069,99935.0,99934.0,0.3333841]
[1733616371253,0.035069,99935.0,99934.0,0.32879644]
[1733616371453,0.035069,99935.0,99934.0,0.33179644]
[1733616371658,0.035069,99935.0,99934.0,0.003]
[1733616372061,0.035069,99935.0,99934.0,0.004]
[1733616373963,0.035069,99935.0,99934.0,0.29787644]
[1733616374163,0.035069,99935.0,99934.0,0.004]
[1733616374865,0.04685995,99935.0,99934.0,0.004]
[1733616375165,0.04685995,99935.0,99934.0,0.00900201]
[1733616376565,0.04685995,99935.0,99934.0,0.04399101]
[1733616377164,0.04685995,99935.0,99934.0,0.33814406]
[1733616377367,0.01187095,99935.0,99934.0,0.33814406]
[1733616377668,8e-05,99935.0,99934.0,0.33815518]
[1733616377857,8e-05,99935.0,99934.0,0.33315317]
[1733616378059,8e-05,99935.0,99934.0,0.33815505]
[1733616378463,8e-05,99935.0,99934.0,0.69622917]
[1733616378770,0.035069,99935.0,99934.0,0.33815505]
[1733616379669,8e-05,99935.0,99934.0,0.33815505]
[1733616380360,0.035069,99935.0,99934.0,0.33815505]
[1733616380559,0.035069,99935.0,99934.0,0.64016461]
[1733616380768,8e-05,99935.0,99934.0,0.34600044]
[1733616381566,8e-05,99935.0,99934.0,0.34101423]
[1733616382170,8e-05,99935.0,99934.0,0.33601235]
[1733616382373,0.035069,99935.0,99934.0,0.33601235]
[1733616382573,0.035069,99935.0,99934.0,0.63491576]
[1733616382872,0.035069,99935.0,99934.0,0.0071262]
[1733616383371,0.035069,99935.0,99934.0,0.0421152]
[1733616384268,0.035069,99935.0,99934.0,0.33825583]
[1733616384465,0.067269,99935.0,99934.0,0.3410686]
[1733616384765,0.067269,99935.0,99934.0,0.00312623]
[1733616384969,0.03499,99931.0,99930.0,0.00011187]
[1733616385165,0.39579,99931.0,99930.0,0.00011187]
[1733616385372,0.39587,99931.0,99930.0,0.23929842]
[1733616385563,0.39587,99931.0,99930.0,0.00011187]
[1733616385963,0.39587,99931.0,99930.0,0.00511187]
[1733616386566,0.39587,99931.0,99930.0,0.00711187]
[1733616387363,0.48570085,99931.0,99930.0,0.00711187]
[1733616388262,0.39587,99931.0,99930.0,0.00711187]
[1733616388970,0.39587,99931.0,99930.0,0.04210287]
[1733616389462,0.36088,99931.0,99930.0,0.04210287]
[1733616391367,0.36088,99931.0,99930.0,0.22135495]
[1733616393067,0.36088,99931.0,99930.0,0.04210287]
[1733616393772,0.39587,99931.0,99930.0,0.00711187]
[1733616395177,0.034994,99922.0,99921.0,0.17927323]
[1733616395475,0.034994,99922.0,99908.0,0.034998]
[1733616395476,0.034994,99921.0,99914.0,0.17927323]
[1733616395682,0.034997,99911.0,99910.0,0.17927323]
[1733616395877,0.034998,99910.0,99909.0,0.17927323]
[1733616396071,0.034998,99910.0,99896.0,0.035003]
[1733616396072,0.034998,99908.0,99906.0,0.17927323]
[1733616396271,0.45060088,99915.0,99900.0,0.17935668]
[1733616396272,0.3608,99907.0,99900.0,0.17935668]
[1733616396468,0.035001,99901.0,99900.0,0.17935668]
[1733616396671,0.035001,99901.0,99900.0,0.18443921]
[1733616396869,0.035001,99901.0,99900.0,0.18756672]
[1733616397073,0.395879,99907.0,99906.0,0.034999]
[1733616397370,0.395879,99907.0,99906.0,0.04329054]
[1733616397371,8e-05,99907.0,99906.0,0.04329054]
[1733616397573,8e-05,99907.0,99906.0,0.2226343]
[1733616397782,8e-05,99907.0,99906.0,0.035159]
[1733616397972,8e-05,99907.0,99906.0,0.0432896]
[1733616398176,8e-05,99907.0,99906.0,0.0442896]
[1733616398577,8e-05,99907.0,99906.0,0.0748896]
[1733616398783,8e-05,99907.0,99906.0,0.0788896]
[1733616399183,8e-05,99907.0,99906.0,0.0818896]
[1733616399482,8e-05,99907.0,99906.0,0.0788896]
[1733616400168,8e-05,99907.0,99906.0,0.31790109]
[1733616400372,8e-05,99907.0,99906.0,0.31289764]
[1733616400673,8e-05,99907.0,99906.0,0.07088615]
[1733616400877,8e-05,99907.0,99906.0,0.07188615]
[1733616401373,8e-05,99907.0,99906.0,0.31571339]
[1733616401575,8e-05,99907.0,99906.0,0.07688861]
[1733616401770,8e-05,99907.0,99906.0,0.31571339]
[1733616402178,8e-05,99907.0,99906.0,0.07688861]
[1733616402395,8e-05,99907.0,99906.0,0.31071458]
[1733616402681,8e-05,99907.0,99906.0,0.07188577]
[1733616403482,8e-05,99907.0,99906.0,0.07688896]
[1733616404384,8e-05,99907.0,99906.0,0.07688931]
[1733616404777,8e-05,99907.0,99906.0,0.04528931]
[1733616404975,8e-05,99907.0,99906.0,0.04428931]
[1733616405185,0.035079,99907.0,99906.0,0.04628931]
[1733616405481,0.035079,99907.0,99906.0,0.01129031]
[1733616405686,0.035079,99907.0,99906.0,0.01029031]
[1733616405981,0.04725496,99907.0,99906.0,0.01029031]
[1733616406383,0.04725496,99907.0,99906.0,0.00528704]
[1733616407986,0.04725496,99907.0,99906.0,0.00216]
[1733616408186,0.04725496,99907.0,99906.0,0.00528765]
[1733616408384,0.04725496,99907.0,99906.0,0.00216]
[1733616409283,0.04725496,99907.0,99906.0,0.00528766]
[1733616410784,0.04725496,99907.0,99906.0,0.00528742]
[1733616412481,0.04725496,99907.0,99906.0,0.00216]
[1733616415179,0.13705584,99907.0,99906.0,0.00216]
[1733616415485,0.04725496,99907.0,99906.0,0.00216]
[1733616415686,0.035001,99901.0,99900.0,8.345e-05]
[1733616415990,0.395881,99901.0,99900.0,8.345e-05]
[1733616416395,0.48568188,99901.0,99900.0,8.345e-05]
[1733616416593,0.395881,99901.0,99900.0,8.345e-05]
[1733616417093,0.428681,99901.0,99900.0,8.345e-05]
[1733616417287,0.51837789,99901.0,99900.0,8.345e-05]
[1733616417485,0.428681,99901.0,99900.0,0.00408345]
[1733616418596,0.395881,99901.0,99900.0,0.00408345]
[1733616418991,0.395881,99901.0,99900.0,0.00721133]
[1733616419201,0.395881,99901.0,99900.0,0.04221233]
[1733616419495,0.395881,99901.0,99900.0,0.04921645]
[1733616419699,0.395881,99901.0,99900.0,0.01421545]
[1733616420197,0.395881,99901.0,99900.0,0.00921133]
[1733616420593,0.395881,99901.0,99900.0,0.00608345]
[1733616421388,0.395881,99901.0,99900.0,0.00921139]
[1733616421604,0.51550609,99901.0,99900.0,0.00921139]
[1733616421805,0.51550609,99901.0,99900.0,0.04421239]
[1733616421806,0.395881,99901.0,99900.0,0.04421239]
[1733616422096,0.395881,99901.0,99900.0,0.00921139]
[1733616422293,0.395881,99901.0,99900.0,0.01421584]
[1733616422891,0.395881,99901.0,99900.0,0.00921126]
[1733616423303,0.51551974,99901.0,99900.0,0.00608345]
[1733616423500,0.395881,99901.0,99900.0,0.00921142]
[1733616425301,0.4856414,99901.0,99900.0,0.00921142]
[1733616425502,0.48565573,99901.0,99900.0,0.00921142]
[1733616425705,0.395881,99901.0,99900.0,0.00921142]
[1733616426206,0.51558573,99901.0,99900.0,0.00921142]
[1733616426402,0.395881,99901.0,99900.0,0.00921142]
[1733616427292,0.395881,99901.0,99900.0,0.00608345]
[1733616427803,0.395881,99901.0,99900.0,0.00921142]
[1733616428403,0.395881,99901.0,99900.0,0.00921135]
[1733616429402,0.395881,99901.0,99900.0,0.04421235]
[1733616429710,0.395881,99901.0,99900.0,0.04921685]
[1733616430405,0.48565922,99901.0,99900.0,0.04921685]
[1733616430710,0.395881,99901.0,99900.0,0.04921685]
[1733616431707,0.48565922,99901.0,99900.0,0.04921685]
[1733616431905,0.395881,99901.0,99900.0,0.04921685]
[1733616432399,0.395881,99901.0,99900.0,0.04921618]
[1733616435314,0.36088,99901.0,99900.0,0.04921618]
[1733616436008,0.31088,99901.0,99900.0,0.04921618]
[1733616436199,0.08988706,99906.0,99900.0,0.64881875]
[1733616436399,0.08988706,99908.0,99907.0,0.034999]
[1733616436711,0.36088596,99910.0,99909.0,0.034998]
[1733616437011,0.36088596,99910.0,99909.0,0.04328973]
[1733616437012,0.39588396,99910.0,99909.0,0.04328973]
[1733616439321,0.36088596,99910.0,99909.0,0.04328973]
[1733616439815,0.36088596,99910.0,99909.0,0.22290759]
[1733616440109,0.39588396,99910.0,99909.0,0.04328973]
[1733616440311,0.39588396,99910.0,99909.0,0.00829173]
[1733616440705,0.39588396,99910.0,99909.0,0.18790058]
[1733616441111,0.39588396,99910.0,99909.0,0.00829173]
[1733616441910,0.39588396,99910.0,99909.0,0.04328973]
[1733616442316,0.39588396,99910.0,99909.0,0.04328868]
[1733616444616,0.45074455,99910.0,99909.0,0.04328868]
[1733616444810,0.36088596,99910.0,99909.0,0.04328868]
[1733616445519,0.36088596,99910.0,99909.0,0.0432887]
[1733616448014,0.39588396,99910.0,99909.0,0.0432887]
[1733616448404,0.39588396,99910.0,99909.0,0.0082907]
[1733616448815,0.39588396,99910.0,99909.0,0.00016]
[1733616449019,0.39588396,99910.0,99909.0,0.00829083]
[1733616449517,0.51558498,99910.0,99909.0,0.00829083]
[1733616450122,0.034999,99906.0,99905.0,0.00016]
[1733616450418,0.035079,99906.0,99905.0,0.00016]
[1733616451206,0.035079,99906.0,99905.0,0.00116]
[1733616452817,0.035079,99906.0,99905.0,0.00316]
[1733616453816,0.035079,99906.0,99900.0,8.345e-05]
[1733616453817,0.035001,99901.0,99900.0,8.345e-05]
[1733616454119,0.395881,99901.0,99900.0,8.345e-05]
[1733616454928,0.395881,99901.0,99900.0,0.00208345]
[1733616455125,0.395881,99901.0,99886.0,0.17968857]
[1733616455126,0.035006,99887.0,99886.0,0.17968857]
[1733616455308,0.035006,99887.0,99873.0,0.29883956]
[1733616455309,0.035008,99880.0,99879.0,0.17968857]
[1733616455620,8e-05,99880.0,99877.0,0.17968857]
[1733616455925,0.035009,99878.0,99877.0,0.17968857]
[1733616456226,0.3608,99879.0,99876.0,0.17968857]
[1733616456413,0.3608,99879.0,99860.0,0.71887412]
[1733616456414,0.03501,99876.0,99873.0,0.17969981]
[1733616456721,0.035011,99873.0,99871.0,0.17969981]
[1733616457120,0.035011,99871.0,99870.0,0.17976046]
[1733616457309,0.035011,99871.0,99870.0,6.065e-05]
[1733616457621,0.035091,99871.0,99870.0,6.065e-05]
[1733616459021,0.035091,99871.0,99870.0,0.00606065]
[1733616459524,0.036091,99871.0,99870.0,0.01506065]
[1733616460128,0.036091,99871.0,99870.0,0.02006629]
[1733616461709,0.396891,99871.0,99870.0,0.02006629]
[1733616462111,0.396891,99871.0,99870.0,0.0231948]
[1733616463020,0.40862816,99871.0,99870.0,0.0231948]
[1733616463221,0.40862816,99871.0,99870.0,0.01818916]
[1733616464013,0.40762816,99871.0,99870.0,0.00918916]
[1733616468319,0.04682816,99871.0,99870.0,0.04420116]
[1733616468631,0.04682816,99871.0,99870.0,0.0492067]
[1733616470221,8e-05,99871.0,99870.0,0.0492067]
[1733616471622,8e-05,99871.0,99870.0,0.04107265]
[1733616471827,8e-05,99871.0,99870.0,0.04607778]
[1733616472029,8e-05,99871.0,99870.0,0.04107265]
[1733616472226,8e-05,99871.0,99870.0,0.04920607]
[1733616478133,8e-05,99871.0,99870.0,0.04607786]
[1733616478434,8e-05,99871.0,99870.0,0.04920611]
[1733616481834,0.035091,99871.0,99870.0,0.04920611]
[1733616483027,0.395891,99871.0,99870.0,0.04920611]
[1733616483732,0.395891,99871.0,99870.0,0.04920662]
[1733616484836,0.395891,99871.0,99870.0,0.01419462]
[1733616486938,0.395891,99871.0,99870.0,0.25420411]
[1733616487541,0.395891,99871.0,99870.0,0.0141949]
[1733616488234,0.395891,99871.0,99870.0,0.25420411]
[1733616488628,0.395891,99871.0,99870.0,0.00606065]
[1733616488832,0.395891,99871.0,99870.0,0.2542042]
[1733616489236,0.51571652,99871.0,99870.0,0.01419499]
[1733616490327,0.395891,99871.0,99870.0,0.01419499]
[1733616491842,0.395891,99871.0,99870.0,0.19419016]
[1733616492136,0.395891,99871.0,99870.0,0.01419499]
[1733616492335,0.035012,99868.0,99867.0,0.17999517]
[1733616492530,0.035013,99866.0,99865.0,0.17999517]
[1733616492738,0.15492444,99866.0,99865.0,0.17999517]
[1733616492936,0.035014,99865.0,99864.0,0.13009517]
[1733616493130,0.035016,99859.0,99858.0,0.24000921]
[1733616493444,0.035016,99857.0,99856.0,0.24000921]
[1733616493745,0.035096,99857.0,99856.0,0.23993332]
[1733616494039,0.035096,99857.0,99850.0,0.29954554]
[1733616494040,0.035018,99851.0,99850.0,0.29954554]
[1733616494244,0.035018,99851.0,99850.0,0.035019]
[1733616494431,0.035098,99851.0,99850.0,0.035019]
[1733616495445,0.035098,99851.0,99850.0,0.041019]
[1733616495744,0.036098,99851.0,99850.0,0.050019]
[1733616497045,0.0476321,99851.0,99850.0,0.050019]
[1733616500543,0.0476321,99851.0,99850.0,0.25472015]
[1733616500744,0.0476321,99851.0,99850.0,0.015]
[1733616501639,0.0476321,99851.0,99850.0,0.009]
[1733616501849,0.0466321,99851.0,99850.0,0.011]
[1733616502147,0.0476321,99851.0,99850.0,0.011]
[1733616502351,0.0476321,99851.0,99850.0,0.01600659]
[1733616503346,0.0476321,99851.0,99850.0,0.01200659]
[1733616503549,0.0476321,99851.0,99850.0,0.01600659]
[1733616504453,0.0476321,99851.0,99850.0,0.01913566]
[1733616506558,0.0476321,99851.0,99850.0,0.01913568]
[1733616507242,0.0476321,99851.0,99850.0,0.011]
[1733616507444,0.0476321,99851.0,99850.0,0.01913563]
[1733616510049,0.0486321,99851.0,99850.0,0.01513634]
[1733616511362,0.0486321,99851.0,99850.0,0.00813634]
[1733616511557,0.13836873,99851.0,99850.0,0.00813634]
[1733616511953,0.0486321,99851.0,99850.0,0.00813634]
[1733616513557,0.035021,99844.0,99843.0,0.00150203]
[1733616513760,0.48555986,99844.0,99843.0,0.00150203]
[1733616513949,0.035023,99838.0,99827.0,0.23972015]
[1733616514148,0.035023,99838.0,99823.0,0.0319]
[1733616514149,0.035027,99827.0,99826.0,0.23972015]
[1733616514458,0.035028,99824.0,99823.0,0.0319]
[1733616514655,8e-05,99828.0,99821.0,0.23972015]
[1733616514862,8e-05,99828.0,99818.0,0.27475015]
[1733616515052,8e-05,99822.0,99818.0,0.27475015]
[1733616515253,0.03503,99819.0,99818.0,0.27475015]
[1733616515458,0.03503,99819.0,99818.0,0.03503]
[1733616515855,0.03511,99819.0,99818.0,0.03503]
[1733616516358,0.03511,99819.0,99818.0,0.04303]
[1733616517158,0.03511,99819.0,99818.0,0.04703]
[1733616517863,0.03611,99819.0,99818.0,0.04803]
[1733616518454,0.04770098,99819.0,99818.0,0.04803]
[1733616521860,0.00108,99819.0,99818.0,0.06054968]
[1733616522063,0.00108,99819.0,99818.0,0.30026983]
[1733616522267,0.00108,99819.0,99818.0,0.07480459]
[1733616522657,0.00108,99819.0,99818.0,0.06228491]
[1733616522861,0.00108,99819.0,99818.0,0.07480373]
[1733616523667,0.00108,99819.0,99818.0,0.07981126]
[1733616524266,0.00108,99819.0,99818.0,0.47631126]
[1733616524977,0.00108,99819.0,99818.0,0.46205635]
[1733616525465,0.00108,99819.0,99818.0,0.46518605]
[1733616526167,0.00108,99819.0,99818.0,0.46518606]
[1733616526669,0.00108,99819.0,99818.0,0.47938563]
[1733616527062,0.00108,99819.0,99818.0,0.79241928]
[1733616527570,0.01,99838.0,99836.0,0.035024]
[1733616527875,0.01127049,99841.0,99836.0,0.36909723]
[1733616528059,0.03502,99847.0,99846.0,0.03502]
[1733616528265,0.03502,99847.0,99846.0,0.04315723]
[1733616528470,0.03502,99847.0,99846.0,0.04331723]
[1733616529264,0.04633689,99847.0,99846.0,0.00829561]
[1733616529663,0.04933689,99847.0,99846.0,0.00016]
[1733616529872,0.13906938,99847.0,99846.0,0.00829619]
[1733616530069,0.04933689,99847.0,99846.0,0.00829619]
[1733616530573,0.04933689,99847.0,99826.0,0.3965]
[1733616530574,0.035027,99827.0,99826.0,0.3965]
[1733616530770,0.035027,99827.0,99826.0,0.00500764]
[1733616531366,0.035107,99827.0,99826.0,0.00500764]
[1733616531759,0.035107,99827.0,99826.0,0.01200764]
[1733616535162,0.04614304,99827.0,99826.0,0.01200764]
[1733616535871,0.04614304,99827.0,99826.0,0.01200782]
[1733616542371,0.04614304,99827.0,99826.0,0.04703482]
[1733616542569,0.04614304,99827.0,99826.0,0.05016465]
[1733616542768,0.13587745,99827.0,99826.0,0.05016465]
[1733616543072,0.04614304,99827.0,99826.0,0.05016465]
[1733616546480,0.04614304,99827.0,99826.0,0.28968694]
[1733616546781,8e-05,99827.0,99826.0,0.05016465]
[1733616547078,8e-05,99827.0,99826.0,0.42190026]